[Event "Turkish Youth Teams U18 2024"]
[Site "Karaman"]
[Date "2024.04.22"]
[Round "4"]
[White "Tarhan, Adar"]
[Black "Atis, Hasan"]
[Result "1/2-1/2"]
[ECO "B46"]
[WhiteElo "2446"]
[BlackElo "2018"]
[Annotator "TA"]
[PlyCount "168"]
[EventDate "2024.04.21"]
[EventType "team-tourn"]
[EventCountry "TUR"]
[SourceTitle "playchess.com"]
[Source "ChessBase"]
[SourceQuality "1"]
[TimeControl "5400+30"]

{[%evp 57,168,-13,-13,-32,0,0,0,-11,0,-52,0,0,0,0,0,0,13,14,21,21,35,0,0,0,0,0,0,0,0,0,0,0,0,0,0,0,0,-1,-2,-20,0,0,0,0,0,0,0,0,0,0,0,0,0,0,0,0,0,-24,-23,-41,-11,-73,-17,-18,-8,-8,-6,0,0,0,0,0,0,0,0,-4,0,-41,0,-49,-8,-6,-7,-8,-8,-24,-24,-47,-24,-76,0,-40,0,0,0,0,0,0,0,0,0,-8,-12,-14,0,0,0,-18,-18,-24,-12,-22,0]} 1. e4 {[%emt 0:05:00]} c5 {[%emt 0:01:00]} 2. Nf3 {[%emt 0:00:30]} e6 {[%emt 0:00:30]} 3. d4 {[%emt 0:00:30]} cxd4 {[%emt 0:00:30]} 4. Nxd4 {[%emt 0:00:30]} Nc6 {[%emt 0:00:00]} 5. Nc3 {[%emt 0:00:00]} Qc7 {[%emt 0:00:00]} 6. a3 {[%emt 0:00:00]} a6 {[%emt 0:00:00]} 7. g4 {[%emt 0:06:30] B46: Sicilian: Taimanov: 5 Nc3 a6.} b5 {[%emt 0:02:00]} 8. Be3 {[%emt 0:02:30]} Bb7 {[%emt 0:00:30]} 9. Nxc6 {[%emt 0:00:30]} Bxc6 {[%emt 0:01:30]} 10. Qd4 {[%emt 0:00:30]} Nf6 {[%emt 0:02:30]} 11. f3 $146 {[%emt 0:01:30]} ({Predecessor:} 11. Be2 Bd6 12. f3 Be5 13. Qd2 d5 14. g5 dxe4 15. gxf6 exf3 16. fxg7 Bxg7 17. Rg1 {0-1 Hernandez,W (1543)-Oganian,M (2441) Titled Tuesday intern op1 3rd March   blitz 2020 (2)}) 11... h6 {[%emt 0:08:30]} 12. Rg1 {[%emt 0:10:30]} d5 {[%emt 0:22:30]} 13. e5 {[%emt 0:00:30]} Nd7 {[%emt 0:00:30]} 14. f4 {[%emt 0:00:30]} Rc8 {[%emt 0:00:00]} 15. O-O-O {[%emt 0:05:30]} Bb7 {[%emt 0:00:00]} 16. Kb1 {[%emt 0:00:30]} Bxa3 {[%emt 0:02:30]} 17. bxa3 {[%emt 0:00:30]} Qxc3 {[%emt 0:00:00]} 18. Qxc3 {[%emt 0:00:30]} Rxc3 {[%emt 0:00:00]} 19. Rd3 {[%emt 0:00:30]} Rc8 {[%emt 0:07:30]} 20. Bd4 {[%emt 0:00:30]} Ke7 {[%emt 0:00:30]} 21. Rf3 {[%emt 0:03:30]} Nc5 {[%emt 0:03:30]} 22. f5 {[%emt 0:01:30]} Ne4 {[%emt 0:00:30]} 23. Kb2 {[%emt 0:02:30]} Rhg8 {[%emt 0:35:58]} 24. Bd3 {[%emt 0:02:30]} Rc7 {[%emt 0:00:01]} 25. Rf4 {[%emt 0:03:30]} Ke8 {[%emt 0:03:16]} 26. a4 {[%emt 0:09:30]} Bc6 {[%emt 0:00:52]} 27. Ka3 {[%emt 0:00:30]} Rb7 {[%emt 0:00:39]} 28. a5 {[%emt 0:02:30]} Bd7 {[%emt 0:02:32]} 29. Kb4 {[%emt 0:02:30]} Rc7 {[%emt 0:00:01]} 30. Bb6 {[%emt 0:02:30]} Rc6 {[%emt 0:00:06]} 31. Rd1 {[%emt 0:02:30]} Nc3 {[%emt 0:00:30]} 32. Rdf1 {[%emt 0:00:30]} Ne4 {[%emt 0:00:30]} 33. h3 {[%emt 0:00:30]} (33. Rd1 $11) 33... Rh8 {[%emt 0:00:30]} ({Better is} 33... h5 $15) 34. c4 $11 {[%emt 0:00:30]} bxc4 {[%emt 0:00:30]} 35. Bxe4 {[%emt 0:00:30]} dxe4 {[%emt 0:00:30]} 36. f6 {[%emt 0:00:30]} g5 {[%emt 0:00:30]} 37. Rxe4 {[%emt 0:00:30]} c3 {[%emt 0:00:30]} 38. Rc1 {[%emt 0:00:30]} h5 {[%emt 0:00:30]} 39. Rxc3 {[%emt 0:00:30]} Rxc3 {[%emt 0:00:30]} 40. Kxc3 {[%emt 0:00:30]} hxg4 {[%emt 0:00:30]} 41. hxg4 {[%emt 0:00:30]} Bc6 {[%emt 0:00:30]} 42. Rb4 {[%emt 0:00:30]} Rh3+ {[%emt 0:00:30]} 43. Kd2 {[%emt 0:00:30]} Rh2+ {[%emt 0:00:30]} 44. Ke3 {[%emt 0:00:30]} Ra2 {[%emt 0:00:30]} 45. Bc5 {[%emt 0:00:30]} Bb5 {[%emt 0:00:30]} 46. Bb6 {[%emt 0:00:30]} Re2+ {[%emt 0:00:30]} 47. Kd4 {[%emt 0:13:30]} Kd7 {[%emt 0:04:58]} 48. Bc5 {[%emt 0:01:30]} Bc6 {[%emt 0:03:05]} 49. Rb8 {[%emt 0:03:08]} Re4+ {[%emt 0:00:30]} 50. Kc3 $1 {[%emt 0:00:30]} Rxe5 {[%emt 0:00:30]} 51. Bb6 {[%emt 0:00:30]} Bf3 {[%emt 0:00:30]} 52. Rf8 {[%emt 0:00:30]} Bxg4 {[%emt 0:00:30]} 53. Rxf7+ {[%emt 0:00:30]} Ke8 $1 {[%emt 0:00:13]} 54. Re7+ {[%emt 0:00:20]} Kf8 {[%emt 0:00:30]} 55. Rc7 {[%emt 0:00:14]} Rf5 {[%emt 0:00:50]} 56. Bc5+ {[%emt 0:00:05]} Kg8 {[%emt 0:00:00]} 57. Be7 {[%emt 0:00:43]} Kf7 {[%emt 0:00:57]} (57... Rxa5 $2 58. f7+ Kxf7 59. Bb4+ (59. Bxg5+ Kg6 $17) 59... Kg6 60. Bxa5 $18) 58. Kd3 {[%emt 0:02:18]} Bh3 {[%emt 0:00:14]} (58... Rxa5 $2 59. Bb4+ Kxf6 60. Bxa5 $18) 59. Rc8 {[%emt 0:01:00]} (59. Bd8+ $11 {keeps the balance.} Kf8 60. Ke3) 59... Bf1+ {[%emt 0:00:30]} (59... Rxa5 60. Rf8+ Kg6 61. Rg8+ Kf7 62. Rg7+ Ke8 63. Bb4 Bf1+ 64. Ke4 Bg2+ 65. Ke3 $11) ({Black should play} 59... e5 $17) 60. Ke3 $11 {[%emt 0:00:30]} Bb5 {[%emt 0:00:30]} 61. Rf8+ {[%emt 0:00:30]} Kg6 {[%emt 0:00:30]} 62. Rg8+ {[%emt 0:00:00]} Kf7 {[%emt 0:00:31]} 63. Rg7+ {[%emt 0:00:02]} Ke8 {[%emt 0:00:00]} 64. Ke4 {[%emt 0:00:50]} Bc6+ {[%emt 0:00:36]} 65. Kd4 {[%emt 0:00:05]} Rd5+ {[%emt 0:00:26]} 66. Kc4 {[%emt 0:00:30]} Rf5 {[%emt 0:00:00]} 67. Rh7 {[%emt 0:00:23]} Bb5+ {[%emt 0:00:00]} (67... Rxa5 68. Bd6 Bd5+ 69. Kc3 $14) 68. Kb4 {[%emt 0:00:34]} (68. Kd4 $11 {is more appropriate.}) 68... Bd3 {[%emt 0:01:02]} 69. Rh8+ {[%emt 0:01:44]} Kf7 {[%emt 0:00:30]} 70. Rf8+ {[%emt 0:00:30]} Kg6 {[%emt 0:00:00]} 71. Bd8 {[%emt 0:01:09]} Be2 {[%emt 0:00:03]} 72. Kc3 {[%emt 0:02:02]} Bb5 {[%emt 0:01:13]} 73. Be7 {[%emt 0:00:13] [#]} (73. Rg8+ $11 {remains equal.} Kh7 74. f7 Rf3+ (74... Rxf7 75. Rxg5 Kh6 76. Rg3 $11) 75. Kb4 Rxf7 76. Rxg5) 73... Bf1 {[%emt 0:00:00]} (73... e5 $1 $17 74. Rg8+ Kf7 75. Rg7+ Ke6) 74. Kd4 {[%emt 0:00:50]} Bb5 {[%emt 0:00:30]} (74... Rxa5 75. Rg8+ Kf7 76. Rg7+ Ke8 77. Bc5 e5+ 78. Kd5 (78. Kxe5 $2 {is the wrong capture.} Rxc5+ 79. Kd6 Rb5 $19) 78... Bg2+ 79. Kd6 $11 (79. Kxe5 $2 {perishes.} Rxc5+ 80. Kd4 Rd5+ 81. Kc3 Rf5 $19)) 75. Rg8+ {[%emt 0:00:30]} Kf7 {[%emt 0:00:30]} 76. Rg7+ {[%emt 0:00:30]} Ke8 {[%emt 0:00:30]} 77. Ke3 {[%emt 0:00:30]} Bf1 {[%emt 0:00:30]} 78. Ke4 {[%emt 0:00:30]} Bb5 {[%emt 0:00:30]} 79. Rh7 {[%emt 0:00:30]} Bc6+ {[%emt 0:00:30]} 80. Kd4 {[%emt 0:00:30]} Rd5+ {[%emt 0:00:30]} 81. Kc4 {[%emt 0:00:30]} Bb5+ {[%emt 0:00:30]} 82. Kb4 {[%emt 0:00:30]} Rf5 {[%emt 0:00:30]} 83. Rg7 {[%emt 0:00:30]} Bf1 {[%emt 0:00:30]} 84. Rg8+ {[%emt 0:00:30]} Kf7 {[%emt 0:00:30]} 1/2-1/2

[Event "Turkish Youth Teams U18 2024"]
[Site "Karaman"]
[Date "2024.04.22"]
[Round "4"]
[White "Taspinar, Yanki"]
[Black "Buyuk, Eymen Eren"]
[Result "1-0"]
[ECO "C06"]
[WhiteElo "2298"]
[BlackElo "1998"]
[Annotator "TA"]
[PlyCount "83"]
[EventDate "2024.04.21"]
[EventType "team-tourn"]
[EventCountry "TUR"]
[SourceTitle "playchess.com"]
[Source "ChessBase"]
[SourceQuality "1"]
[TimeControl "5400+30"]

{[%evp 27,83,0,15,20,20,10,12,16,31,24,19,14,13,18,18,0,61,37,44,45,50,17,81,38,39,53,37,52,43,45,81,80,84,85,90,92,125,77,113,118,191,182,188,134,159,118,270,247,291,296,292,283,1240,1230,2219,2219,29989,1148]} 1. e4 {[%emt 0:03:00]} e6 {[%emt 0:01:00]} 2. d4 {[%emt 0:00:00]} d5 {[%emt 0:00:30]} 3. Nd2 {[%emt 0:00:00]} Nf6 {[%emt 0:00:00]} 4. e5 {[%emt 0:01:30]} Nfd7 {[%emt 0:00:00]} 5. c3 {[%emt 0:00:00]} c5 {[%emt 0:00:30]} 6. Bd3 {[%emt 0:02:00]} Nc6 {[%emt 0:00:30]} 7. Ne2 {[%emt 0:00:30]} cxd4 {[%emt 0:00:30]} 8. cxd4 {[%emt 0:00:30]} f6 {[%emt 0:00:30]} 9. exf6 {[%emt 0:00:30]} Nxf6 {[%emt 0:00:30]} 10. O-O {[%emt 0:00:30]} Bd6 {[%emt 0:00:00]} 11. Nf3 {[%emt 0:00:00]} Qc7 {[%emt 0:00:00]} 12. Bg5 {[%emt 0:05:00]} O-O {[%emt 0:00:00]} 13. Qc2 {[%emt 0:03:30]} h6 {[%emt 0:03:00]} 14. Bh4 {[%emt 0:00:30]} Nh5 {[%emt 0:04:30]} 15. Bh7+ {[%emt 0:09:30]} (15. Bg6 {feels hotter.} Rxf3 16. gxf3 Bxh2+ 17. Kg2) 15... Kh8 {[%emt 0:00:30][%cal Of8f3]} 16. Bg6 {[%emt 0:00:30]} Rxf3 {[%emt 0:01:30]} 17. gxf3 {[%emt 0:07:30] The position is equal.} Bxh2+ {[%emt 0:15:30]} 18. Kg2 $1 {[%emt 0:00:30]} Nf4+ {[%emt 0:01:30]} 19. Nxf4 $1 {[%emt 0:01:30]} Qxf4 {[%emt 0:02:30]} 20. Bg3 {[%emt 0:00:30] The board is on fire.} (20. Rh1 Nxd4 21. Qa4 b5 $17 (21... Qxf3+ 22. Kxh2 Qf4+ 23. Kg2 $11)) 20... Bxg3 {[%emt 0:00:30]} 21. fxg3 {[%emt 0:00:30]} Qxd4 {[%emt 0:00:30]} (21... Qf6 $1 $11) 22. Be8 $1 $14 {[%emt 0:11:30]} Nb4 {[%emt 0:22:30]} 23. Qb3 $36 {[%emt 0:13:30][%mdl 3072] White has compensation. White is pushing.} Nd3 {[%emt 0:07:30]} 24. Bb5 {[%emt 0:11:30]} Nc5 {[%emt 0:11:30]} (24... Nxb2 $11 {remains equal.} 25. Rac1 a6) 25. Qa3 {[%emt 0:03:30]} Bd7 $1 {[%emt 0:00:30]} 26. Rad1 {[%emt 0:07:01]} Qf6 {[%emt 0:00:00]} 27. Bxd7 {[%emt 0:01:25]} Nxd7 {[%emt 0:00:00][%cal Bc5d7,Bd7e5,Be5c4][%mdl 32]} 28. Rf2 {[%emt 0:00:37]} a6 {[%emt 0:09:18]} 29. Qd6 {[%emt 0:04:09]} Rd8 {[%emt 0:02:24]} 30. Qc7 {[%emt 0:02:07]} Ne5 {[%emt 0:01:10]} 31. Qxb7 {[%emt 0:02:45] White is more active.} Nc4 {[%emt 0:00:06]} 32. Qb3 {[%emt 0:01:32] Against Ne3+} (32. Qxa6 $2 {perishes.} Ne3+ (32... Nxb2 33. Re1 $18) 33. Kg1 Nxd1 $19) (32. Re2 $142 $1 Rf8 33. Qb3 (33. Qxa6 Qxf3+ 34. Kh3 Qh5+ 35. Kg2 Qxe2+ 36. Kh3 Qh5+ 37. Kg2 Ne3+ 38. Kg1 Qxd1+ 39. Kh2 Rf2+ 40. Kh3 Qh5#)) 32... Qe5 {[%emt 0:02:07]} 33. Rd3 {[%emt 0:01:36] Inhibits Ne3+.} h5 {[%emt 0:02:03]} (33... Rc8 $16) 34. Qc3 $18 {[%emt 0:02:50]} Qf5 {[%emt 0:01:46]} 35. Rd4 {[%emt 0:02:00]} (35. Re2 $18) 35... e5 $16 {[%emt 0:06:36]} 36. Rh4 {[%emt 0:00:01]} Rc8 $2 {[%emt 0:00:36] Loses the game.} (36... g6 $16 {was necessary.}) 37. g4 $18 {[%emt 0:02:00]} Qf4 {[%emt 0:00:08] [#] And now ...Ne3+ would win.} 38. Rxh5+ {[%emt 0:00:24]} Kg8 {[%emt 0:00:01]} 39. Re2 {[%emt 0:01:02] Prevents Ne3+. Hoping for Qd3.} g6 $2 {[%emt 0:01:37]} (39... Rf8 40. Qd3 Rf7) 40. Rhxe5 {[%emt 0:02:03]} d4 {[%emt 0:03:18]} 41. Qb3 {[%emt 0:00:55] [#] White wants to mate with Re8+.} Rc7 {[%emt 0:03:33]} 42. Re6 {[%emt 0:00:37] Weighted Error Value: White=0.13 (very precise) /Black=0.46.  Mistake:       	White=2     	Black=5      Inaccurate:     	White=2     	Black=4      OK:         	White=9     	Black=5      Best:        	White=4     	Black=4      Strong:       	White=3     	Black=1} (42. Qb8+ $142 Qf8 43. Re8 (43. Qxc7 Nxe5 44. Rxe5 d3 45. Re6 Qg7 46. Re8+ Qf8 47. Qc4+ Kg7 48. Rxf8 Kxf8) 43... Rf7 44. Rxf8+ Rxf8 45. Qb3 Kg7 46. Qxc4 Rf7 47. Re8 (47. Qxd4+ Kg8 48. Re8+ Rf8 49. Qd5+ Kh8 50. Rxf8+ Kg7 51. Rf7+ Kg8 52. Re7+ Kh8 53. Qd8#)) 1-0

[Event "Turkish Youth Teams U18 2024"]
[Site "Karaman"]
[Date "2024.04.22"]
[Round "4"]
[White "Oktem, Ege Tuna"]
[Black "Camci, Kayra"]
[Result "1-0"]
[ECO "B22"]
[WhiteElo "2076"]
[BlackElo "1770"]
[Annotator "TA"]
[PlyCount "119"]
[EventDate "2024.04.21"]
[EventType "team-tourn"]
[EventCountry "TUR"]
[SourceTitle "playchess.com"]
[Source "ChessBase"]
[SourceQuality "1"]
[TimeControl "5400+30"]

{[%evp 22,119,0,0,14,0,4,0,5,3,12,-30,-29,-22,-16,-20,-23,-24,0,0,0,0,0,0,0,0,19,32,22,31,27,34,68,31,137,67,75,69,95,56,66,70,64,55,69,46,47,0,0,0,0,0,0,0,0,0,0,0,0,0,0,0,0,0,8,8,21,21,291,291,291,291,291,291,291,291,426,306,291,291,291,291,443,395,2220,1704,29958,12804,29936,5118,29974,29975,29981,29981,29981,29981,29988,29989,29990,29991]} 1. e4 {[%emt 0:03:00]} c5 {[%emt 0:01:00]} 2. c3 {[%emt 0:01:30]} Nf6 {[%emt 0:00:30]} 3. e5 {[%emt 0:00:30]} Nd5 {[%emt 0:00:30]} 4. Nf3 {[%emt 0:00:00]} Nc6 {[%emt 0:00:00]} 5. d4 {[%emt 0:00:00]} cxd4 {[%emt 0:00:00]} 6. cxd4 {[%emt 0:00:00]} d6 {[%emt 0:00:30]} 7. Bc4 {[%emt 0:00:00]} Nb6 {[%emt 0:00:30]} 8. Bb3 {[%emt 0:01:30]} dxe5 {[%emt 0:00:30]} 9. d5 {[%emt 0:00:30]} Na5 {[%emt 0:00:30]} 10. Nc3 {[%emt 0:00:30]} Nxb3 {[%emt 0:00:30]} 11. Qxb3 {[%emt 0:00:30]} e6 {[%emt 0:00:00]} 12. Nxe5 {[%emt 0:00:00]} Be7 {[%emt 0:00:00][%cal Rb6d5]} 13. Qb5+ {[%emt 0:01:00]} Kf8 {[%emt 0:00:00]} 14. dxe6 {[%emt 0:13:30]} Bxe6 {[%emt 0:00:00] The position is equal.} 15. Qe2 {[%emt 0:00:30]} f6 {[%emt 0:00:00] [#]} 16. Ng6+ {[%emt 0:02:30]} hxg6 {[%emt 0:00:00]} 17. Qxe6 {[%emt 0:00:30]} Qd3 {[%emt 0:00:30]} 18. Qe2 {[%emt 0:00:30]} Qxe2+ {[%emt 0:00:30]} 19. Kxe2 {[%emt 0:04:30]} Kf7 {[%emt 0:00:00]} 20. Be3 {[%emt 0:05:30]} Nc4 {[%emt 0:01:00][%cal Ob7b6]} 21. Nd5 {[%emt 0:03:30]} Rhd8 {[%emt 0:08:30]} (21... Nxb2 22. Nxe7 Kxe7 23. Rab1 $18) 22. Nxe7 {[%emt 0:03:30]} Nxe3 {[%emt 0:00:30]} 23. Nc6 {[%emt 0:00:30]} Re8 {[%emt 0:02:30]} 24. fxe3 {[%emt 0:00:30]} bxc6 $11 {[%emt 0:00:00][%mdl 4096] Endgame. KRR-KRR} 25. Rac1 {[%emt 0:00:30]} Re6 {[%emt 0:01:00]} 26. Rhd1 {[%emt 0:00:30]} Rae8 {[%emt 0:01:30]} 27. Rc3 {[%emt 0:00:00]} f5 {[%emt 0:09:30]} (27... Rb8 $14) 28. Kf3 {[%emt 0:02:00]} (28. Rd7+ $16 Kf6 (28... R8e7 29. Rxe7+ Kxe7 30. Ra3 $16) 29. Rxa7) 28... g5 {[%emt 0:01:30]} 29. h3 {[%emt 0:03:30]} Kf6 {[%emt 0:18:30][%cal Oc6c5]} 30. Rd4 {[%emt 0:07:30]} c5 {[%emt 0:05:30]} 31. Ra4 {[%emt 0:02:30]} R8e7 {[%emt 0:00:30]} 32. b3 {[%emt 0:00:30][%cal Oa4c4]} Rc7 {[%emt 0:01:30]} 33. Rac4 {[%emt 0:03:30]} Re5 {[%emt 0:04:30]} 34. b4 {[%emt 0:00:30]} (34. Rd3 $14) 34... cxb4 {[%emt 0:00:30]} 35. Rxc7 {[%emt 0:00:30]} bxc3 {[%emt 0:00:00]} 36. Rxc3 {[%emt 0:00:00] KR-KR} Ra5 {[%emt 0:00:00]} 37. a3 {[%emt 0:00:00]} Ke5 {[%emt 0:01:30]} 38. g4 {[%emt 0:02:30]} fxg4+ {[%emt 0:10:30]} 39. Kxg4 {[%emt 0:03:30]} Kf6 {[%emt 0:02:30]} 40. e4 {[%emt 0:00:30][%cal Be3e4,Be4e5][%mdl 32]} Ra4 {[%emt 0:00:30]} 41. Rf3+ {[%emt 0:00:30]} Kg6 {[%emt 0:01:30]} 42. Re3 {[%emt 0:00:30]} Kf6 {[%emt 0:00:00]} 43. Kh5 {[%emt 0:00:30]} g6+ {[%emt 0:02:00]} 44. Kh6 {[%emt 0:01:30]} Ra6 $2 {[%emt 0:00:30][%mdl 8192] [#] A mistake that costs the game.} (44... Rc4 $11) 45. e5+ $1 $18 {[%emt 0:01:30]} Ke7 {[%emt 0:06:30]} ({Avoid the trap} 45... Kf5 $2 46. e6 Kf4 47. e7 Kxe3 48. e8=Q+ $18 (48. e8=B $2 {is the wrong capture.} Kf4 $19)) 46. Kxg5 {[%emt 0:02:30][%cal Oe5e6] e6! is the strong threat.} Re6 {[%emt 0:00:30]} 47. Re4 {[%emt 0:03:30]} Ra6 {[%emt 0:01:30]} 48. a4 {[%emt 0:00:30]} Re6 {[%emt 0:00:00]} (48... Rb6 {was called for.} 49. a5 Ra6) 49. h4 {[%emt 0:00:30]} Kf7 {[%emt 0:00:00] [#]} 50. Kh6 $1 {[%emt 0:01:30] Black must now prevent Kh7.} Kg8 {[%emt 0:02:30]} 51. Re3 {[%emt 0:03:30]} Kf7 {[%emt 0:01:30]} (51... a6 {keeps fighting.} 52. a5 Kf7) 52. Kh7 {[%emt 0:00:30]} Re7 $2 {[%emt 0:02:30]} (52... Ke7 53. Kg7 Rb6) 53. Rf3+ {[%emt 0:07:30]} Ke8+ {[%emt 0:00:30]} 54. Kxg6 {[%emt 0:00:30] Intending h5 and mate.} Rxe5 {[%emt 0:00:30]} 55. h5 {[%emt 0:01:21][%cal Bh4h5,Bh5h6,Bh6h7][%mdl 32] White wants to mate with h6.} Re4 {[%emt 0:03:02]} 56. h6 {[%emt 0:03:22] White mates.} Rxa4 {[%emt 0:02:30]} 57. h7 {[%emt 0:00:30]} Rh4 {[%emt 0:00:30]} 58. Rf5 {[%emt 0:00:00]} Rh1 {[%emt 0:00:00]} 59. Rh5 {[%emt 0:00:21]} Rg1+ {[%emt 0:00:00]} 60. Kh6 {[%emt 0:00:00] Weighted Error Value: White=0.08 (flawless) /Black=0.63.  Loses game:     	---       	Black=1      Mistake:       	White=2     	Black=4      Inaccurate:     	White=3     	Black=3      OK:         	White=20    	Black=19     Best:        	White=3     	Black=1      Strong:       	White=2     	---} 1-0

[Event "Turkish Youth Teams U18 2024"]
[Site "Karaman"]
[Date "2024.04.22"]
[Round "4"]
[White "Yildiz, Serdar Murat"]
[Black "Acar, Kaan"]
[Result "1/2-1/2"]
[ECO "B48"]
[WhiteElo "2021"]
[BlackElo "1815"]
[Annotator "TA RC"]
[PlyCount "99"]
[EventDate "2024.04.21"]
[EventType "team-tourn"]
[EventCountry "TUR"]
[SourceTitle "playchess.com"]
[Source "ChessBase"]
[SourceQuality "1"]
[TimeControl "5400+30"]

{[%evp 11,99,18,39,23,24,16,20,0,-18,-16,0,-36,-33,-35,-38,-4,-10,-46,-3,-4,-22,-7,0,-7,0,-3,59,67,64,74,283,137,141,146,151,28,29,21,34,0,0,0,0,-8,0,0,0,0,952,952,29995,0,29994,0,0,0,0,0,8,0,0,0,0,23,29,0,149,137,148,158,152,87,92,68,141,133,216,145,270,18,31,15,16,0,0,0,0,-24,-34,-24]} 1. e4 c5 2. Nf3 Nc6 3. d4 cxd4 4. Nxd4 Qc7 {[%emt 0:00:30]} 5. Nc3 {[%emt 0:01:00]} e6 {[%emt 0:00:30]} 6. Be3 {[%emt 0:00:30]} a6 {[%emt 0:00:30]} 7. Qf3 {[%emt 0:00:00]} Bd6 {[%emt 0:01:30] Against Qg3} 8. O-O-O {[%emt 0:05:00]} Be5 $1 {[%emt 0:00:00]} 9. Be2 {[%emt 0:04:30] The position is equal.} Nge7 {[%emt 0:01:00]} 10. g3 {[%emt 0:05:30][%cal Oe3f4]} O-O {[%emt 0:01:30]} 11. Qh5 {[%emt 0:04:30]} b5 {[%emt 0:03:30]} 12. f4 {[%emt 0:00:30] Nxc6 is the strong threat.} Bxd4 {[%emt 0:00:30]} 13. Bxd4 {[%emt 0:01:30]} b4 {[%emt 0:05:30][%cal Oc6d4]} 14. Na4 {[%emt 0:08:30]} Nxd4 {[%emt 0:00:30]} 15. Rxd4 {[%emt 0:02:30]} d5 $1 {[%emt 0:01:30]} 16. exd5 $1 {[%emt 0:04:30]} Nxd5 {[%emt 0:02:30] White must now prevent ...Bd7.} 17. Bd3 $1 {[%emt 0:07:30][%csl Gd3][%cal Rh5h7]} g6 {[%emt 0:00:30]} 18. Qe5 {[%emt 0:05:30]} Qa5 {[%emt 0:04:30]} (18... Qc6 $11 19. b3 Bd7) 19. b3 $14 {[%emt 0:00:30]} Bd7 {[%emt 0:01:30]} 20. f5 $1 {[%emt 0:04:30]} Ra7 $2 {[%emt 0:07:30]} (20... gxf5 $2 21. Bxf5 exf5 22. Rxd5 $18) (20... Rae8 $16) 21. Bc4 {[%emt 0:11:30]} (21. fxe6 $18 {has better winning chances.} fxe6 22. Bc4) 21... gxf5 {[%emt 0:04:30]} 22. Bxd5 {[%emt 0:06:30]} Bxa4 {[%emt 0:01:30]} 23. g4 {[%emt 0:11:23]} (23. bxa4 $16 {[%cal Oe5e3] aiming for Qe3!} Rd7 24. Rf1 Rxd5 25. Rxd5 Qxd5 26. Qxd5 exd5 27. Rxf5) 23... exd5 $11 {[%emt 0:02:30]} 24. gxf5 {[%emt 0:05:53][%cal Rh1g1]} f6 {[%emt 0:00:30]} 25. Qe6+ {[%emt 0:02:29]} (25. Qd6 $5 Raf7 26. bxa4 $14) 25... Kh8 {[%emt 0:00:30]} 26. bxa4 {[%emt 0:00:10]} Qxa4 {[%emt 0:04:30]} 27. Qd6 {[%emt 0:01:12] Prevents Rc7.} Raa8 {[%emt 0:00:30]} 28. Kb1 {[%emt 0:02:34][%cal Od6e7]} Rac8 {[%emt 0:01:30]} 29. Rc1 {[%emt 0:00:02][%cal Od6e7] Active counter play!} Qa3 $2 {[%emt 0:05:30][%mdl 8192]} (29... Qc6 $11 30. Qxc6 Rxc6) 30. Qe7 $1 $18 {[%emt 0:02:30][%cal Od4g4] White wants to mate with Rg4!} Rce8 {[%emt 0:01:30]} 31. Qd7 $2 {[%emt 0:00:25]} (31. Qxh7+ $1 Kxh7 32. Rh4+ (32. Rxd5 $2 {perishes.} Rd8 $19) 32... Kg7 33. Rg1+ Qg3 34. Rxg3+ Kf7 35. Rh7#) 31... Rd8 $2 {[%emt 0:00:30][%mdl 8192] [#]} (31... Qh3 $11) 32. Qa7 $2 {[%emt 0:00:22]} (32. Qxh7+ $1 {mates} Kxh7 33. Rh4+ Kg8 34. Rg1+ Qg3 35. Rxg3+ Kf7 36. Rh7+ Ke8 37. Re3#) 32... Qe3 {[%emt 0:01:30]} 33. Rcd1 $40 {[%emt 0:00:31][%mdl 128] White mounts an attack.} Qf2 {[%emt 0:02:30]} 34. Qxa6 {[%emt 0:01:08]} Qxf5 {[%emt 0:00:00]} 35. Rf1 {[%emt 0:00:18]} Qe5 {[%emt 0:02:00][%csl LRd4,LRh2]} 36. Rh4 {[%emt 0:00:02][%cal Oa6a7]} b3 {[%emt 0:02:30]} 37. cxb3 {[%emt 0:00:24]} Qe3 {[%emt 0:02:30] Against Qa7. Threatens to win with ...Ra8.} 38. Rd1 {[%emt 0:00:32]} Rc8 {[%emt 0:01:30]} (38... Qf2 $11 {remains equal.} 39. Ra4 Qxh2) 39. Qd3 {[%emt 0:02:58][%csl Gh4][%cal Rd3h7]} (39. Rxd5 $2 Qc1#) 39... Rc1+ {[%emt 0:01:30]} 40. Kb2 $1 {[%emt 0:00:30][%csl Gh4][%cal Rd3h7]} Qf2+ {[%emt 0:00:00]} 41. Qd2 {[%emt 0:00:00] Dancing on a razor blade.} (41. Rd2 $142 {[%csl Gh4][%cal Rd3h7]} Qxh4 42. Kxc1) 41... Qxh4 $16 {[%emt 0:00:00]} 42. Rxc1 {[%emt 0:00:00][%mdl 4096] Endgame. KQR-KQR} Qh5 {[%emt 0:00:30] [#]} ({Black should try} 42... f5 $14) 43. Re1 $1 {[%emt 0:00:49]} Qf3 {[%emt 0:01:30] Prevents Qf4} (43... Qh4 $16 {might work better.}) 44. Re3 {[%emt 0:00:47]} Qh1 {[%emt 0:00:30]} (44... Qf4 $16 {was called for.} 45. a4 Rg8) 45. Rd3 $2 {[%emt 0:00:24]} ({White should play} 45. a4 $18) 45... Rg8 $11 {[%emt 0:00:30] ...Rg2 would now be deadly.} 46. Qf4 {[%emt 0:00:27]} (46. Rxd5 $2 {loses.} Rg2 47. Kc2 (47. Rd8+ $2 Kg7 $19) 47... Rxd2+ $19) 46... Rg2+ {[%emt 0:01:30]} 47. Ka3 {[%emt 0:00:30]} Qa1 {[%emt 0:00:00]} 48. Qb8+ {[%emt 0:01:00]} Rg8 {[%emt 0:00:00]} 49. Qb7 {[%emt 0:00:27]} Qc1+ {[%emt 0:00:30]} 50. Ka4 {[%emt 0:00:51] Weighted Error Value: White=0.49/Black=0.44.  Loses game:     	---       	Black=2      Missed win:     	White=1     	---        Mistake:       	White=3     	Black=5      Inaccurate:     	White=5     	Black=1      OK:         	White=12    	Black=18     Best:        	White=3     	Black=3      Strong:       	White=6     	Black=2} 1/2-1/2